bitfinex/quotes_SOLUSD_20241231
["timestamp","ask_amount","ask_price","bid_price","bid_amount"]
[1735640684756,43.776884,194.43,194.31,0.25098]
[1735640684955,7.6732,194.47,194.31,5.94309019]
[1735640685334,43.776884,194.43,194.31,5.94309019]
[1735640686461,43.776884,194.43,194.31,5.17138]
[1735640687946,43.776884,194.43,194.31,5.94309472]
[1735640688760,7.6732,194.47,194.32,0.12549]
[1735640688961,6.0794,194.47,194.34,0.12549]
[1735640689255,20.0,194.44,194.35,1.6218]
[1735640689555,20.0,194.44,194.36,0.25098]
[1735640689761,20.0,194.47,194.36,0.25098]
[1735640690759,20.0,194.48,194.36,0.25098]
[1735640691166,23.776884,194.47,194.36,0.25098]
[1735640692046,0.12549,194.46,194.35,1.6218]
[1735640693749,0.37647,194.46,194.35,1.6218]
[1735640695774,0.12549,194.46,194.35,1.6218]
[1735640695968,23.776884,194.47,194.35,1.6218]
[1735640700274,6.537,194.51,194.36,0.25098]
[1735640700776,20.0,194.48,194.36,0.25098]
[1735640700948,20.0,194.47,194.36,0.25098]
[1735640703657,20.0,194.47,194.37,4.9204]
[1735640705492,9.62752535,194.52,194.38,0.37647]
[1735640705690,9.62752535,194.52,194.38,11.36139446]
[1735640705860,8.07682535,194.52,194.38,11.36139446]
[1735640706191,20.0,194.49,194.4,0.25098]
[1735640706871,43.776884,194.51,194.4,0.25098]
[1735640712606,43.776884,194.51,194.39,1.6663]
[1735640713612,6.2555,194.55,194.41,0.12549]
[1735640713771,8.07682535,194.57,194.43,0.25098]
[1735640714087,20.0,194.53,194.43,1.88618]
[1735640714485,20.0,194.53,194.43,1.6352]
[1735640714691,23.776884,194.52,194.43,1.6352]
[1735640715413,20.0,194.49,194.43,1.6352]
[1735640720296,8.07682535,194.56,194.43,1.6352]
[1735640720499,20.0,194.53,194.44,4.9204]
[1735640720794,8.07682535,194.56,194.44,4.9204]
[1735640721317,8.07682535,194.57,194.45,10.46440158]
[1735640721518,20.0,194.54,194.45,0.25098]
[1735640722086,20.0,194.56,194.45,10.46440158]
[1735640722312,20.0,194.56,194.45,0.25098]
[1735640722489,8.07682535,194.61,194.47,0.25098]
[1735640722696,8.07682535,194.61,194.48,0.12549]
[1735640722890,20.0,194.59,194.48,0.12549]
[1735640723095,23.776884,194.61,194.48,0.12549]
[1735640723392,8.07682535,194.62,194.48,0.12549]
[1735640723722,20.0,194.59,194.49,0.25098]
[1735640724501,43.776884,194.61,194.49,0.25098]
[1735640724705,43.776884,194.61,194.49,10.46440158]
[1735640724915,43.776884,194.61,194.5,1.6015]
[1735640725127,7.9453,194.65,194.5,1.6015]
[1735640725128,23.776884,194.64,194.5,1.6015]
[1735640725706,20.0,194.61,194.5,1.6015]
[1735640726208,20.0,194.61,194.51,5.29687]
[1735640726393,20.0,194.65,194.51,5.29687]
[1735640727315,20.0,194.61,194.51,5.29687]
[1735640727695,20.0,194.61,194.51,15.51029158]
[1735640727997,20.70062523,194.68,194.51,15.51029158]
[1735640728791,43.776884,194.64,194.53,0.25098]
[1735640728996,20.70062523,194.68,194.54,1.72699]
[1735640729196,20.70062523,194.68,194.54,11.94041158]
[1735640729503,20.0,194.65,194.56,0.12549]
[1735640730309,20.0,194.65,194.55,5.17138]
[1735640731200,20.0,194.65,194.56,0.12549]
[1735640731395,20.0,194.65,194.55,5.17138]
[1735640736626,20.0,194.65,194.57,0.25098]
[1735640740714,20.0,194.65,194.55,15.13382158]
[1735640741211,20.0,194.65,194.56,0.25098]
[1735640742535,20.0,194.65,194.55,4.9204]
[1735640742713,20.0,194.61,194.55,4.9204]
[1735640743435,20.0,194.61,194.54,1.6015]
[1735640744329,20.0,194.61,194.51,4.9204]
[1735640744330,20.0,194.57,194.47,1.655]
[1735640746160,20.0,194.57,194.48,0.37647]
[1735640748535,28.61182523,194.68,194.48,11.36091884]
[1735640748858,43.902374,194.64,194.5,0.37647]
[1735640749158,43.902374,194.64,194.48,0.77102726]
[1735640749461,43.902374,194.64,194.49,0.37647]
[1735640750064,43.902374,194.64,194.49,10.58989158]
[1735640750437,43.776884,194.64,194.51,0.37647]
[1735640750636,43.776884,194.64,194.49,10.21342158]
[1735640751267,0.12549,194.63,194.5,0.25098]
[1735640751775,0.12549,194.63,194.48,0.12549]
[1735640752357,0.37647,194.63,194.47,1.655]
[1735640754349,0.37647,194.63,194.48,0.25098]
[1735640758985,0.37647,194.63,194.47,1.655]
[1735640760980,20.12549,194.58,194.47,1.655]
[1735640761178,20.0,194.54,194.47,1.655]
[1735640762662,23.776884,194.53,194.47,1.655]
[1735640762883,24.153354,194.6,194.47,1.655]
[1735640763190,0.25098,194.56,194.47,1.655]
[1735640766283,1.6224,194.61,194.47,1.655]
[1735640766788,20.0,194.59,194.47,1.655]
[1735640767189,20.0,194.55,194.47,1.655]
[1735640767889,20.0,194.59,194.47,1.655]
[1735640768065,20.0,194.55,194.47,1.655]
[1735640768976,1.6224,194.61,194.47,1.655]
[1735640769284,6.4547,194.62,194.48,5.29687]
[1735640769487,1.5843,194.66,194.5,0.25098]
[1735640769875,20.0,194.64,194.5,0.25098]
[1735640770388,20.0,194.6,194.5,0.25098]
[1735640771083,20.0,194.64,194.5,0.25098]
[1735640771288,20.0,194.64,194.49,10.21342158]
[1735640771289,20.0,194.6,194.49,0.25098]
[1735640772061,20.0,194.6,194.49,10.46440158]
[1735640774090,20.0,194.6,194.49,0.25098]
[1735640776190,20.0,194.6,194.5,1.586]
[1735640777923,23.776884,194.59,194.5,1.586]
[1735640778121,20.0,194.56,194.5,1.586]
[1735640785916,20.0,194.52,194.46,1.6271]
[1735640788779,6.1148,194.6,194.46,1.6271]
[1735640789205,43.776884,194.56,194.46,1.6271]
[1735640801329,8.07682535,194.61,194.47,0.12549]
[1735640801830,43.776884,194.58,194.47,0.12549]
[1735640802728,43.776884,194.58,194.47,0.25098]
[1735640803436,20.0,194.58,194.47,0.25098]
[1735640803644,0.12549,194.61,194.47,0.25098]
[1735640804351,20.0,194.58,194.47,0.25098]
[1735640805729,20.0,194.58,194.47,0.12549]
[1735640807737,20.0,194.58,194.46,1.6271]
[1735640808647,20.0,194.57,194.46,1.6271]
[1735640808814,20.0,194.53,194.46,1.6271]
[1735640815443,20.0,194.53,194.47,3.48960742]
[1735640815957,20.0,194.53,194.46,1.6271]
[1735640817243,20.0,194.53,194.47,3.4894147]
[1735640817844,8.07682535,194.62,194.47,1.14763535]
[1735640818346,20.0,194.58,194.47,1.14763535]
[1735640818515,20.0,194.58,194.49,0.12549]
[1735640819220,20.0,194.58,194.48,0.25098]
[1735640826550,20.0,194.54,194.46,1.6271]
[1735640827149,20.0,194.54,194.47,3.49321285]
[1735640827853,20.0,194.54,194.47,0.12549]
[1735640828838,20.0,194.58,194.47,0.37647]
[1735640829161,20.0,194.58,194.49,0.12549]
[1735640829837,8.07682535,194.62,194.49,0.12549]
[1735640830451,20.0,194.58,194.49,0.12549]
[1735640830860,20.0,194.58,194.47,0.37647]
[1735640831436,20.0,194.58,194.49,0.12549]
[1735640831636,20.0,194.54,194.48,3.49204535]
[1735640831857,20.0,194.54,194.46,1.6271]
[1735640832059,20.0,194.54,194.47,0.12549]
[1735640832935,20.0,194.58,194.47,0.37647]
[1735640833135,20.0,194.58,194.47,0.25098]
[1735640833336,20.0,194.58,194.47,0.37647]
[1735640833638,43.776884,194.59,194.49,0.12549]
[1735640834354,43.776884,194.59,194.47,0.37647]
[1735640834552,43.776884,194.59,194.48,0.12549]
[1735640836756,43.776884,194.59,194.46,1.6271]
[1735640837257,43.776884,194.59,194.47,3.61876724]
[1735640837858,43.776884,194.59,194.48,3.49327724]
[1735640838465,43.776884,194.59,194.47,0.12549]
[1735640839039,0.12549,194.58,194.46,1.6271]
[1735640839537,43.776884,194.59,194.47,0.25098]
[1735640840151,43.776884,194.59,194.48,3.49301641]
[1735640840737,43.776884,194.59,194.47,0.25098]
[1735640841576,43.776884,194.59,194.48,3.49384284]
[1735640842072,43.776884,194.59,194.47,0.25098]
[1735640842947,43.776884,194.59,194.48,3.49347495]
[1735640843453,43.776884,194.59,194.47,0.25098]
[1735640844561,43.776884,194.59,194.48,3.49362729]
[1735640845166,43.776884,194.59,194.47,0.25098]
[1735640846555,43.776884,194.59,194.48,3.49385712]
[1735640847172,43.776884,194.59,194.47,0.25098]
[1735640847865,43.776884,194.59,194.46,1.6271]
[1735640847866,0.12549,194.58,194.46,1.6271]
[1735640848253,43.776884,194.59,194.47,3.61950892]
[1735640849074,43.776884,194.59,194.47,0.12549]
[1735640856080,43.776884,194.59,194.48,3.49555107]
[1735640856279,8.07682535,194.6,194.49,0.25098]
[1735640856467,8.07682535,194.6,194.51,0.12549]
[1735640856779,20.0,194.57,194.51,0.12549]
[1735640857273,8.07682535,194.62,194.51,0.25098]
[1735640857673,20.0,194.59,194.51,0.25098]
[1735640858186,20.0,194.59,194.51,0.12549]
[1735640862988,20.0,194.59,194.52,3.49344811]
[1735640863484,20.0,194.59,194.51,0.25098]
[1735640863670,20.0,194.63,194.51,0.25098]
[1735640864072,23.902374,194.65,194.51,0.25098]
[1735640864567,23.902374,194.65,194.53,0.12549]
[1735640865290,20.0,194.62,194.52,0.25098]
[1735640866393,20.0,194.62,194.51,0.37647]
[1735640866594,20.0,194.62,194.53,0.25098]
[1735640866887,20.0,194.62,194.53,0.12549]
[1735640867263,20.0,194.62,194.51,0.12549]
[1735640867897,20.0,194.62,194.51,0.37647]
[1735640868876,20.0,194.62,194.53,0.12549]
[1735640869287,20.0,194.62,194.52,0.12549]
[1735640872680,28.77745058,194.68,194.55,0.12549]
[1735640873190,28.77745058,194.68,194.55,0.37647]
[1735640873375,20.0,194.64,194.57,0.12549]
[1735640873582,28.77745058,194.68,194.56,6.5109]
[1735640873889,20.0,194.65,194.56,6.5109]
[1735640885499,20.0,194.65,194.57,0.12549]
[1735640886605,20.0,194.65,194.57,0.25098]
[1735640887005,20.70062523,194.68,194.57,0.25098]
[1735640887393,20.0,194.65,194.57,0.25098]
[1735640887697,20.70062523,194.68,194.59,0.25098]
[1735640888222,20.70062523,194.68,194.57,0.37647]
[1735640890124,20.0,194.65,194.57,0.37647]
[1735640890316,20.0,194.65,194.56,10.75864968]
[1735640890709,20.0,194.65,194.56,7.28156495]
[1735640891021,20.0,194.65,194.57,0.25098]
[1735640895008,20.70062523,194.68,194.57,0.37647]
[1735640895229,20.70062523,194.68,194.58,0.12549]
[1735640896933,20.70062523,194.68,194.57,0.25098]
[1735640897332,20.70062523,194.68,194.57,0.37647]
[1735640901345,20.70062523,194.68,194.59,0.25098]
[1735640901513,20.70062523,194.68,194.59,0.12549]
[1735640902414,20.70062523,194.68,194.59,0.25098]
[1735640903241,20.70062523,194.68,194.59,0.37647]
[1735640904034,20.70062523,194.68,194.61,0.12549]
[1735640904332,20.70062523,194.68,194.6,1.5208]
[1735640905443,20.0,194.65,194.6,1.5208]
[1735640907942,20.0,194.65,194.56,6.4412]
[1735640909421,23.776884,194.64,194.56,1.5208]
[1735640909643,20.0,194.61,194.56,1.5208]
[1735640910435,20.70062523,194.68,194.56,1.5208]
[1735640910436,20.0,194.65,194.56,1.5208]
[1735640915758,20.0,194.61,194.56,1.5208]
[1735640916660,20.0,194.65,194.56,1.5208]
[1735640921059,20.0,194.65,194.57,0.12549]
[1735640924162,20.0,194.65,194.56,1.5208]
[1735640932177,20.70062523,194.68,194.56,1.5208]
[1735640933078,20.70062523,194.68,194.57,0.12549]
[1735640934493,23.776884,194.67,194.57,0.12549]
[1735640935384,20.70062523,194.68,194.57,0.25098]
[1735640937099,20.70062523,194.68,194.58,3.49363416]
[1735640937801,20.70062523,194.68,194.57,0.25098]
[1735640938096,23.776884,194.67,194.56,1.5208]
[1735640938293,20.0,194.64,194.56,1.5208]
[1735640948396,20.0,194.6,194.56,1.5208]
[1735640948694,20.0,194.6,194.52,6.4543]
[1735640949075,20.0,194.6,194.53,3.49980982]
[1735640949479,20.0,194.6,194.52,6.4543]
[1735640950576,20.0,194.6,194.53,3.50068948]
[1735640951283,20.0,194.6,194.52,6.4543]
[1735640952101,20.0,194.6,194.53,3.5014187]
[1735640952497,20.0,194.6,194.52,6.4543]
[1735640953501,20.0,194.6,194.53,3.50107858]
[1735640953904,20.0,194.6,194.52,6.4543]
[1735640954904,20.0,194.6,194.53,3.50101793]
[1735640955401,20.0,194.6,194.52,6.4543]
[1735640956803,20.0,194.6,194.53,3.5005483]
[1735640957408,20.0,194.6,194.52,6.4543]
[1735640958278,20.0,194.6,194.53,3.50025682]
[1735640958889,20.0,194.6,194.52,6.4543]
[1735640961205,20.0,194.6,194.53,3.49996368]
[1735640961718,20.0,194.6,194.53,0.12549]
[1735640962217,6.5503,194.67,194.53,10.58989158]
[1735640962713,20.0,194.63,194.53,10.58989158]
[1735640962884,20.0,194.63,194.55,0.12549]
[1735640963587,20.0,194.63,194.54,0.25098]
[1735640963993,20.0,194.63,194.55,3.49699002]
[1735640964603,20.0,194.63,194.54,0.25098]
[1735640965404,20.0,194.63,194.55,3.49604774]
[1735640966002,20.70062523,194.68,194.54,0.25098]
[1735640966191,20.70062523,194.68,194.56,0.25098]
[1735640967026,20.0,194.65,194.58,0.12549]
[1735640967392,20.0,194.65,194.56,0.37647]
[1735640967695,20.0,194.65,194.56,10.58989158]
[1735640967882,20.0,194.65,194.56,0.37647]
[1735640968081,20.0,194.65,194.56,10.58989158]
[1735640968602,20.0,194.65,194.6,0.12549]
[1735640970513,20.0,194.65,194.6,0.25098]
[1735640977416,20.0,194.65,194.62,0.12549]
[1735640977840,20.70062523,194.68,194.62,0.12549]
[1735640978902,20.70062523,194.68,194.6,0.37647]
[1735640981517,20.0,194.65,194.6,0.25098]
[1735640984530,20.0,194.65,194.6,0.37647]
[1735640984831,20.70062523,194.68,194.6,0.37647]
[1735640985327,20.70062523,194.68,194.61,0.12549]
[1735640991628,20.70062523,194.68,194.61,10.33891158]
[1735640991813,20.70062523,194.68,194.63,0.12549]
[1735640993427,20.70062523,194.68,194.65,0.25098]
[1735640994423,20.70062523,194.68,194.64,1.6353]
[1735640994824,20.70062523,194.68,194.65,0.37647]
[1735640999541,20.70062523,194.68,194.65,0.25098]
[1735641000245,20.70062523,194.68,194.61,0.77036296]
[1735641000433,20.70062523,194.68,194.6,3.47755572]
[1735641000626,20.70062523,194.68,194.59,17.5396528]
[1735641000946,20.70062523,194.68,194.6,0.37647]
[1735641001258,20.70062523,194.68,194.62,0.37647]
[1735641014966,20.70062523,194.68,194.64,0.25098]
[1735641015167,20.70062523,194.68,194.64,0.12549]
[1735641015546,20.70062523,194.68,194.59,0.77051326]
[1735641016067,20.70062523,194.68,194.6,3.86512527]
[1735641016270,20.70062523,194.68,194.62,0.37647]
[1735641017365,20.70062523,194.68,194.62,0.25098]
[1735641017571,20.70062523,194.68,194.59,10.21342158]
[1735641017947,20.70062523,194.68,194.61,0.37647]
[1735641020772,20.70062523,194.68,194.63,0.12549]
[1735641021349,20.70062523,194.68,194.62,0.12549]
[1735641025166,20.70062523,194.68,194.61,0.12549]
[1735641028391,20.70062523,194.68,194.63,0.12549]
[1735641028972,20.70062523,194.68,194.6,0.37647]
[1735641029655,20.70062523,194.68,194.61,3.497724]
[1735641029850,20.70062523,194.68,194.62,0.25098]
[1735641030058,20.0,194.65,194.61,3.497724]
[1735641030271,20.0,194.62,194.61,3.497724]
[1735641030472,20.0,194.61,194.54,8.03857037]
[1735641030876,20.0,194.61,194.55,3.50082647]
[1735641031073,20.0,194.57,194.55,3.50082647]
[1735641031279,1.5788,194.56,194.55,3.50082647]
[1735641031479,1.5788,194.56,194.54,8.03857037]
[1735641031665,6.5296,194.55,194.54,8.03857037]
[1735641031861,20.0,194.52,194.47,8.03857037]
[1735641032979,20.0,194.52,194.41,10.21342158]
[1735641033880,20.0,194.52,194.43,0.37647]
[1735641034286,20.0,194.52,194.43,3.87343055]
[1735641035176,20.0,194.52,194.43,0.37647]
[1735641035385,6.5296,194.55,194.47,0.25098]
[1735641035581,6.5296,194.55,194.47,10.46440158]
[1735641037196,6.5296,194.55,194.47,0.12549]
[1735641037398,20.0,194.52,194.43,13.71038213]
[1735641037586,20.0,194.52,194.43,3.49696055]
[1735641037972,20.0,194.52,194.42,10.21342158]
[1735641038287,20.0,194.52,194.43,0.37647]
[1735641042799,20.0,194.52,194.43,10.58989158]
[1735641043094,8.1084,194.51,194.43,10.58989158]
[1735641043676,8.1084,194.51,194.43,0.37647]
[1735641046983,8.1084,194.51,194.43,10.58989158]
[1735641047184,8.1084,194.51,194.43,0.37647]
[1735641047386,8.1084,194.51,194.43,10.58989158]
[1735641049706,8.1084,194.51,194.45,0.12549]
[1735641049886,8.1084,194.51,194.47,0.25098]
[1735641050090,8.1084,194.51,194.47,10.46440158]
[1735641050587,8.1084,194.51,194.47,0.25098]
[1735641051709,8.1084,194.51,194.45,10.21342158]
[1735641051900,8.1084,194.51,194.44,10.21342158]
[1735641052102,8.1084,194.51,194.46,10.21342158]
[1735641053891,8.1084,194.51,194.46,0.12549]
[1735641058320,8.1084,194.51,194.46,0.25098]
[1735641058521,8.1084,194.51,194.37,12.862]
[1735641058828,8.1084,194.51,194.44,0.37647]
[1735641059826,8.1084,194.51,194.44,10.58989158]
[1735641060699,8.1084,194.51,194.47,0.25098]
[1735641062825,8.1084,194.51,194.46,0.37647]
[1735641063322,8.1084,194.51,194.44,10.98461098]
[1735641063527,8.1084,194.51,194.41,10.9845408]
[1735641063829,8.1084,194.51,194.42,0.37647]
[1735641064200,8.1084,194.51,194.41,10.9845408]
[1735641064530,8.1084,194.51,194.4,13.69458962]
[1735641064825,8.1084,194.51,194.41,0.37647]
[1735641066320,8.1084,194.51,194.41,10.58989158]
[1735641066502,8.1084,194.51,194.43,0.37647]
[1735641068110,8.1084,194.51,194.4,3.48116804]
[1735641068316,8.1084,194.51,194.4,10.21342158]
[1735641069028,8.1084,194.51,194.42,0.12549]
[1735641069730,8.1084,194.51,194.41,10.46440158]
[1735641071030,8.1084,194.51,194.41,0.37647]
[1735641071931,8.1084,194.51,194.41,3.86362801]
[1735641073030,7.712,194.47,194.35,0.77136219]
[1735641073212,7.712,194.47,194.34,23.07722158]
[1735641073412,7.712,194.47,194.35,10.58989158]
[1735641073607,23.776884,194.46,194.33,10.21342158]
[1735641073809,23.776884,194.46,194.35,3.49915821]
[1735641074129,1.6354,194.44,194.35,3.49915821]
[1735641074429,1.6354,194.44,194.36,0.25098]
[1735641074831,1.6354,194.44,194.36,3.75013821]
[1735641075220,1.6354,194.44,194.37,3.49915821]
[1735641075622,1.6354,194.44,194.38,3.49915821]
[1735641076335,1.6354,194.44,194.34,0.37647]
[1735641076536,1.6354,194.44,194.34,0.25098]
[1735641076735,6.2073,194.41,194.29,0.77164178]
[1735641076919,6.2073,194.41,194.35,3.50746223]
[1735641077308,1.6301,194.4,194.35,3.50746223]
[1735641077634,1.6301,194.4,194.31,0.37647]
[1735641078029,1.6301,194.4,194.32,3.50612106]
[1735641078235,6.2073,194.39,194.32,3.50612106]
[1735641078545,6.2073,194.34,194.33,3.50612106]
[1735641079345,6.2073,194.34,194.26,3.50612106]
[1735641079740,6.2073,194.34,194.26,13.71954264]
[1735641079914,6.2073,194.34,194.27,3.50612106]
[1735641081043,6.2073,194.34,194.27,0.12549]
[1735641081341,6.2073,194.34,194.28,0.12549]
[1735641081546,6.2073,194.34,194.31,0.25098]
[1735641081718,6.2073,194.34,194.3,10.33891158]
[1735641081719,7.8374,194.39,194.33,0.25098]
[1735641083961,7.8374,194.39,194.35,0.12549]
[1735641084254,7.8374,194.44,194.39,0.12549]
[1735641084457,6.2073,194.44,194.4,0.12549]
[1735641084664,6.2073,194.44,194.41,0.37647]
[1735641084870,7.8374,194.49,194.41,10.58989158]
[1735641086158,7.8374,194.49,194.43,0.12549]
[1735641087350,7.8374,194.49,194.42,0.12549]
[1735641087552,7.8374,194.49,194.42,0.25098]
[1735641087931,7.8374,194.49,194.42,0.12549]
[1735641088146,7.8374,194.49,194.41,0.12549]
[1735641088669,7.8374,194.49,194.39,0.12549]
[1735641088862,7.8374,194.49,194.39,0.25098]
[1735641089162,20.0,194.46,194.37,0.25098]
[1735641089347,20.0,194.46,194.35,10.21342158]
[1735641089550,23.776884,194.45,194.34,3.48960035]
[1735641089953,23.776884,194.45,194.33,0.37647]
[1735641090153,20.0,194.46,194.34,10.21342158]
[1735641090782,20.0,194.46,194.33,10.21342158]
[1735641090964,20.0,194.46,194.34,0.37647]
[1735641094474,23.776884,194.45,194.33,20.0]
[1735641096083,23.776884,194.45,194.34,0.12549]
[1735641096491,23.776884,194.45,194.32,16.31089261]
[1735641096992,20.0,194.46,194.33,16.70606295]
[1735641097155,20.0,194.46,194.34,16.31089261]
[1735641097477,20.0,194.46,194.36,16.31089261]
[1735641099196,20.0,194.46,194.36,0.37647]
[1735641100399,7.854,194.54,194.42,24.153354]
[1735641100571,7.854,194.54,194.44,0.37647]
[1735641100881,20.0,194.51,194.4,16.70561008]
[1735641101585,20.0,194.51,194.41,0.37647]
[1735641104486,20.0,194.51,194.38,17.46962261]
[1735641104988,20.0,194.51,194.38,1.5352]
[1735641105491,20.0,194.51,194.39,0.37647]
[1735641106889,20.0,194.51,194.39,16.31089261]
[1735641108483,20.0,194.51,194.41,0.37647]
[1735641108667,7.854,194.54,194.41,16.31089261]
[1735641114368,7.854,194.54,194.41,10.56631424]
[1735641114687,7.854,194.54,194.41,14.04989037]
[1735641115185,7.854,194.54,194.42,23.776884]
[1735641115490,7.854,194.54,194.43,10.56631424]
[1735641115683,7.854,194.54,194.45,0.37647]
[1735641117163,6.171,194.58,194.45,34.34319824]
[1735641117486,6.171,194.58,194.47,20.25098]
[1735641117684,20.0,194.54,194.44,0.77114321]
[1735641117991,20.0,194.54,194.41,23.82012106]
[1735641118194,20.0,194.54,194.42,0.25098]
[1735641118866,23.776884,194.53,194.4,20.611024]
[1735641119086,23.776884,194.53,194.41,0.37647]
[1735641119287,20.0,194.5,194.38,1.5352]
[1735641119592,26.171,194.5,194.39,0.37647]
[1735641120404,23.776884,194.49,194.38,20.611024]
[1735641120592,23.776884,194.49,194.35,0.77136864]
[1735641120788,23.776884,194.49,194.37,20.0]
[1735641121608,20.0,194.38,194.28,48.23142226]
[1735641121782,21.5113,194.38,194.28,8.03857037]
[1735641122210,21.5113,194.38,194.28,11.52762522]
[1735641122608,21.5113,194.38,194.28,3.48905485]
[1735641122812,21.5113,194.38,194.26,0.37647]
[1735641123009,21.5113,194.38,194.25,1.6061]
[1735641123518,21.5113,194.38,194.25,5.09579333]
[1735641123892,23.776884,194.37,194.25,1.6061]
[1735641124093,21.5113,194.38,194.25,17.53412923]
[1735641124305,21.5113,194.38,194.26,16.17900923]
[1735641124494,21.5113,194.38,194.29,0.12549]
[1735641124703,6.1703,194.41,194.31,0.12549]
[1735641126985,23.776884,194.4,194.27,15.92802923]
[1735641127205,20.0,194.37,194.27,0.77179999]
[1735641127411,20.0,194.37,194.27,0.37647]
[1735641128618,20.0,194.37,194.27,3.86445316]
[1735641129097,20.0,194.37,194.27,0.37647]
[1735641129304,20.0,194.37,194.27,1.14838818]
[1735641129615,20.0,194.37,194.27,4.63637134]
[1735641129796,20.0,194.37,194.27,20.56440057]
[1735641129992,20.0,194.38,194.29,0.37647]
[1735641130618,6.1703,194.41,194.29,0.37647]
[1735641130823,6.1703,194.41,194.29,3.86190171]
[1735641131823,6.1703,194.41,194.29,23.86190171]
[1735641132006,6.1703,194.41,194.29,3.86190171]
[1735641132626,6.1703,194.41,194.29,0.37647]
[1735641132929,6.1703,194.41,194.29,20.37647]
[1735641133928,6.1703,194.41,194.29,37.07629531]
[1735641134420,6.1703,194.41,194.29,21.14826608]
[1735641134625,6.1703,194.41,194.3,23.48517205]
[1735641134828,6.1703,194.41,194.31,0.37647]
[1735641135122,6.1703,194.41,194.31,40.85308551]
[1735641135292,6.1703,194.41,194.33,0.37647]
[1735641137328,6.1703,194.41,194.33,20.37647]
[1735641139937,6.1703,194.41,194.33,21.14801879]
[1735641140109,21.5113,194.43,194.33,37.07604802]
[1735641140306,1.5113,194.43,194.33,37.07604802]
[1735641141035,1.5113,194.43,194.33,21.14801879]
[1735641141221,1.5113,194.43,194.34,20.0]
[1735641142143,1.5113,194.43,194.35,0.25098]
[1735641142636,1.5113,194.43,194.34,0.25098]
[1735641142934,1.5113,194.43,194.35,0.12549]
[1735641143232,6.0493,194.46,194.37,0.12549]
[1735641143439,6.0493,194.46,194.38,0.25098]
[1735641143815,6.0493,194.46,194.39,0.12549]
[1735641144016,8.1097,194.52,194.41,0.12549]
[1735641144319,8.1097,194.52,194.42,0.25098]
[1735641144516,8.1097,194.52,194.45,0.12549]
[1735641144823,6.5185,194.56,194.47,0.12549]
[1735641146918,6.5185,194.56,194.47,23.902374]
[1735641147118,6.5185,194.56,194.49,0.12549]
[1735641148218,6.5185,194.56,194.51,0.12549]
[1735641148419,1.5912,194.57,194.51,0.12549]
[1735641150449,6.5185,194.61,194.51,0.12549]
[1735641150633,6.5185,194.61,194.53,0.25098]
[1735641151026,6.5185,194.61,194.54,0.12549]
[1735641151234,1.5912,194.63,194.54,0.12549]
[1735641151551,1.5912,194.63,194.55,0.25098]
[1735641151729,6.4312,194.65,194.56,0.12549]
[1735641154188,22.27892523,194.68,194.56,0.12549]
[1735641154664,22.27892523,194.68,194.55,40.7266352]
[1735641154665,20.70062523,194.68,194.6,24.153354]
[1735641154875,20.70062523,194.68,194.62,0.37647]
[1735641156438,20.70062523,194.68,194.56,0.77050663]
[1735641157677,20.70062523,194.68,194.57,24.153354]
[1735641157981,20.70062523,194.68,194.59,0.37647]
[1735641158589,20.70062523,194.68,194.57,20.0]
[1735641158894,20.70062523,194.68,194.58,0.37647]
[1735641159875,20.70062523,194.68,194.58,40.08138323]
[1735641160056,20.70062523,194.68,194.6,0.37647]
[1735641161587,20.70062523,194.68,194.57,20.0]